fUST/lending_fUST_20240804
["ID","MTS","AMOUNT","RATE_DAILY","PERIOD"]
[334071793,1722726641079,-3922.00621908,0.00013597,2]
[334071794,1722726641090,-360.9595643,0.00013601,2]
[334071795,1722726641101,-674.57935067,0.00013648,2]
[334071796,1722726641113,-153.0,0.00013666,2]
[334071797,1722726641124,-200.0,0.00013673,2]
[334071798,1722726641136,-74378.1098457,0.00013688,2]
[334071799,1722726641148,-1129.72,0.00013697,2]
[334071800,1722726641160,-1129.72,0.00013697,2]
[334071801,1722726641172,-1129.72,0.00013697,2]
[334071802,1722726641185,-0.23419354,0.00013698,2]
[334071803,1722726641198,-309.69854211,0.00013698,2]
[334071804,1722726641211,-500.0,0.00013698,2]
[334071805,1722726641224,-500.0,0.00013698,2]
[334071806,1722726641234,-500.0,0.00013698,2]
[334071807,1722726641247,-402.99362953,0.00013698,2]
[334071808,1722726641257,-500.0,0.00013698,2]
[334071809,1722726641267,-500.0,0.00013698,2]
[334071810,1722726641278,-500.0,0.00013698,2]
[334071811,1722726641290,-500.0,0.00013698,2]
[334071812,1722726641303,-500.0,0.00013698,2]
[334071813,1722726641319,-500.0,0.00013698,2]
[334071814,1722726641331,-500.0,0.00013698,2]
[334071815,1722726641340,-500.0,0.00013698,2]
[334071816,1722726641352,-500.0,0.00013698,2]
[334071817,1722726641364,-504.37203134,0.00013698,2]
[334071818,1722726641375,-500.0,0.00013698,2]
[334071819,1722726641388,-500.0,0.00013698,2]
[334071820,1722726641402,-500.41144212,0.00013698,2]
[334071821,1722726641413,-500.0,0.00013698,2]
[334071822,1722726641426,-500.0,0.00013698,2]
[334071823,1722726641438,-500.0,0.00013698,2]
[334071824,1722726641451,-500.0,0.00013698,2]
[334071825,1722726641464,-500.0,0.00013698,2]
[334071826,1722726641475,-500.0,0.00013698,2]
[334071827,1722726641487,-500.0,0.00013698,2]
[334071828,1722726641502,-500.0,0.00013698,2]
[334071829,1722726641514,-519.81703122,0.00013698,2]
[334071830,1722726641524,-500.0,0.00013698,2]
[334071831,1722726641534,-560.11250154,0.00013698,2]
[334071832,1722726641545,-500.0,0.00013698,2]
[334071833,1722726641558,-500.0,0.00013698,2]
[334071834,1722726641570,-500.0,0.00013698,2]
[334071835,1722726641581,-500.0,0.00013698,2]
[334071836,1722726641592,-500.0,0.00013698,2]
[334071837,1722726641603,-500.0,0.00013698,2]
[334071838,1722726641614,-312.51887577,0.00013698,2]
[334071839,1722726641626,-500.0,0.00013698,2]
[334071840,1722726641638,-502.49066998,0.00013698,2]
[334071841,1722726641650,-500.0,0.00013698,2]
[334071842,1722726641660,-500.0,0.00013698,2]
[334071843,1722726641672,-500.0,0.00013698,2]
[334071844,1722726641683,-500.0,0.00013698,2]
[334071845,1722726641694,-500.0,0.00013698,2]
[334071846,1722726641705,-500.0,0.00013698,2]
[334071847,1722726641716,-217.18052133,0.00013698,2]
[334071848,1722726641727,-500.0,0.00013698,2]
[334071849,1722726641738,-500.0,0.00013698,2]
[334071850,1722726641750,-386.3386317,0.00013698,2]
[334071851,1722726641761,-500.0,0.00013698,2]
[334071852,1722726641773,-500.0,0.00013698,2]
[334071853,1722726641784,-500.0,0.00013698,2]
[334071854,1722726641796,-455.35880274,0.00013698,2]
[334071855,1722726641806,-500.0,0.00013698,2]
[334071856,1722726641819,-500.0,0.00013698,2]
[334071857,1722726641830,-604.47294293,0.00013698,2]
[334071858,1722726641842,-500.0,0.00013698,2]
[334071859,1722726641853,-500.0,0.00013698,2]
[334071860,1722726641865,-487.06573187,0.00013698,2]
[334071861,1722726641877,-500.0,0.00013698,2]
[334071862,1722726641888,-500.0,0.00013698,2]
[334071863,1722726641899,-500.0,0.00013698,2]
[334071864,1722726641912,-500.0,0.00013698,2]
[334071865,1722726641923,-500.0,0.00013698,2]
[334071866,1722726641935,-500.0,0.00013698,2]
[334071867,1722726641946,-500.0,0.00013698,2]
[334071868,1722726641957,-500.0,0.00013698,2]
[334071869,1722726641969,-500.0,0.00013698,2]
[334071870,1722726641980,-500.0,0.00013698,2]
[334071871,1722726641996,-500.0,0.00013698,2]
[334071872,1722726642007,-500.0,0.00013698,2]
[334071873,1722726642018,-500.0,0.00013698,2]
[334071874,1722726642154,-500.0,0.00013698,2]
[334071875,1722726642170,-500.0,0.00013698,2]
[334071876,1722726642180,-445.78366679,0.00013698,2]
[334071877,1722726642190,-500.0,0.00013698,2]
[334071878,1722726642200,-188.66237129,0.00013698,2]
[334071879,1722726642209,-500.0,0.00013698,2]
[334071880,1722726642218,-500.0,0.00013698,2]
[334071881,1722726642227,-289.26489898,0.00013698,2]
[334071882,1722726642242,-500.0,0.00013698,2]
[334071883,1722726642251,-500.0,0.00013698,2]
[334071884,1722726642260,-500.0,0.00013698,2]
[334071885,1722726642269,-500.0,0.00013698,2]
[334071886,1722726642279,-500.0,0.00013698,2]
[334071887,1722726642288,-500.0,0.00013698,2]
[334071888,1722726642298,-500.0,0.00013698,2]
[334071889,1722726642308,-500.0,0.00013698,2]
[334071890,1722726642320,-500.0,0.00013698,2]
[334071891,1722726642330,-500.0,0.00013698,2]
[334071892,1722726642339,-500.0,0.00013698,2]
[334071893,1722726642349,-500.0,0.00013698,2]
[334071894,1722726642359,-500.0,0.00013698,2]
[334071895,1722726642368,-410.52935477,0.00013698,2]
[334071896,1722726642378,-500.0,0.00013698,2]
[334071897,1722726642388,-500.0,0.00013698,2]
[334071898,1722726642400,-500.0,0.00013698,2]
[334071899,1722726642412,-500.0,0.00013698,2]
[334071900,1722726642421,-500.0,0.00013698,2]
[334071901,1722726642431,-500.0,0.00013698,2]
[334071902,1722726642442,-500.0,0.00013698,2]
[334071903,1722726642452,-500.0,0.00013698,2]
[334071904,1722726642461,-500.0,0.00013698,2]
[334071905,1722726642471,-500.0,0.00013698,2]
[334071906,1722726642480,-178.4216098,0.00013698,2]
[334071907,1722726642491,-500.0,0.00013698,2]
[334071908,1722726642500,-500.0,0.00013698,2]
[334071909,1722726642509,-500.0,0.00013698,2]
[334071910,1722726642518,-483.25628062,0.00013698,2]
[334071911,1722726642527,-500.0,0.00013698,2]
[334071912,1722726642538,-500.0,0.00013698,2]
[334071913,1722726642549,-500.0,0.00013698,2]
[334071914,1722726642559,-500.0,0.00013698,2]
[334071915,1722726642569,-500.0,0.00013698,2]
[334071916,1722726642578,-500.0,0.00013698,2]
[334071917,1722726642588,-500.0,0.00013698,2]
[334071918,1722726642599,-194.27418549,0.00013698,2]
[334071919,1722726642610,-500.0,0.00013698,2]
[334071920,1722726642620,-232.12203426,0.00013698,2]
[334071921,1722726642630,-173.0145936,0.00013698,2]
[334071923,1722726642640,-500.0,0.00013698,2]
[334071925,1722726642650,-500.0,0.00013698,2]
[334071926,1722726642659,-500.0,0.00013698,2]
[334071928,1722726642669,-640.16,0.00013698,2]
[334071930,1722726642680,-500.0,0.00013698,2]
[334071932,1722726642690,-500.0,0.00013698,2]
[334071934,1722726642700,-500.0,0.00013698,2]
[334071936,1722726642709,-500.0,0.00013698,2]
[334071938,1722726642719,-500.0,0.00013698,2]
[334071942,1722726642729,-500.0,0.00013698,2]
[334071946,1722726642741,-214.67892049,0.00013698,2]
[334071950,1722726642751,-500.0,0.00013698,2]
[334071955,1722726642760,-500.0,0.00013698,2]
[334071960,1722726642770,-233.61649993,0.00013698,2]
[334071965,1722726642780,-500.0,0.00013698,2]
[334071969,1722726642789,-593.67,0.00013698,2]
[334071973,1722726642798,-500.0,0.00013698,2]
[334071975,1722726642808,-500.0,0.00013698,2]
[334071976,1722726642817,-501.10914025,0.00013698,2]
[334071978,1722726642826,-500.0,0.00013698,2]
[334071980,1722726642836,-500.0,0.00013698,2]
[334071982,1722726642845,-500.0,0.00013698,2]
[334071984,1722726642854,-600.18942545,0.00013698,2]
[334071986,1722726642864,-500.0,0.00013698,2]
[334071987,1722726642873,-500.0,0.00013698,2]
[334071988,1722726642883,-514.91455876,0.00013698,2]
[334071990,1722726642892,-500.0,0.00013698,2]
[334071992,1722726642903,-500.0,0.00013698,2]
[334071994,1722726642913,-207.60570339,0.00013698,2]
[334071996,1722726642922,-500.0,0.00013698,2]
[334071998,1722726642932,-503.631483,0.00013698,2]
[334072000,1722726642941,-151.0,0.00013698,2]
[334072002,1722726642952,-500.0,0.00013698,2]
[334072004,1722726642961,-151.0,0.00013698,2]
[334072006,1722726642970,-500.0,0.00013698,2]
[334072008,1722726642981,-150.0,0.00013698,2]
[334072010,1722726642993,-500.0,0.00013698,2]
[334072012,1722726643002,-151.0,0.00013698,2]
[334072014,1722726643019,-500.0,0.00013698,2]
[334072016,1722726643028,-500.0,0.00013698,2]
[334072018,1722726643038,-170.3200768,0.00013698,2]
[334072020,1722726643049,-507.56802688,0.00013698,2]
[334072022,1722726643058,-543.59444247,0.00013698,2]
[334072024,1722726643068,-500.0,0.00013698,2]
[334072026,1722726643078,-500.0,0.00013698,2]
[334072028,1722726643087,-500.0,0.00013698,2]
[334072029,1722726643097,-500.0,0.00013698,2]
[334072030,1722726643108,-500.0,0.00013698,2]
[334072031,1722726643118,-500.0,0.00013698,2]
[334072032,1722726643128,-471.39460102,0.00013698,2]
[334072033,1722726643138,-500.0,0.00013698,2]
[334072034,1722726643148,-333.76648805,0.00013698,2]
[334072035,1722726643157,-500.0,0.00013698,2]
[334072036,1722726643167,-500.0,0.00013698,2]
[334072037,1722726643177,-500.0,0.00013698,2]
[334072038,1722726643186,-500.0,0.00013698,2]
[334072039,1722726643196,-507.13105688,0.00013698,2]
[334072040,1722726643207,-500.0,0.00013698,2]
[334072041,1722726643218,-498.26237834,0.00013698,2]
[334072042,1722726643230,-500.0,0.00013698,2]
[334072043,1722726643242,-500.0,0.00013698,2]
[334072044,1722726643252,-500.0,0.00013698,2]
[334072045,1722726643262,-500.0,0.00013698,2]
[334072046,1722726643271,-500.0,0.00013698,2]
[334072047,1722726643281,-500.0,0.00013698,2]
[334072048,1722726643290,-500.0,0.00013698,2]
[334072049,1722726643302,-500.0,0.00013698,2]
[334072050,1722726643315,-151.0,0.00013698,2]
[334072051,1722726643328,-503.20124971,0.00013698,2]
[334072052,1722726643337,-500.0,0.00013698,2]
[334072053,1722726643348,-500.0,0.00013698,2]
[334072054,1722726643359,-500.0,0.00013698,2]
[334072055,1722726643369,-500.0,0.00013698,2]
[334072056,1722726643380,-500.0,0.00013698,2]
[334072057,1722726643389,-500.0,0.00013698,2]
[334072058,1722726643402,-502.51666468,0.00013698,2]
[334072059,1722726643412,-500.0,0.00013698,2]
[334072060,1722726643423,-500.0,0.00013698,2]
[334072061,1722726643436,-500.0,0.00013698,2]
[334072062,1722726643446,-500.0,0.00013698,2]
[334072063,1722726643455,-500.0,0.00013698,2]
[334072064,1722726643465,-550.21483176,0.00013698,2]
[334072065,1722726643475,-500.0,0.00013698,2]
[334072066,1722726643488,-500.0,0.00013698,2]
[334072067,1722726643499,-500.0,0.00013698,2]
[334072068,1722726643509,-500.0,0.00013698,2]
[334072069,1722726643519,-500.0,0.00013698,2]
[334072070,1722726643531,-500.0,0.00013698,2]
[334072071,1722726643541,-454.03894399,0.00013698,2]
[334072072,1722726643552,-500.0,0.00013698,2]
[334072073,1722726643562,-500.0,0.00013698,2]
[334072074,1722726643572,-500.0,0.00013698,2]
[334072075,1722726643582,-500.0,0.00013698,2]
[334072076,1722726643591,-500.0,0.00013698,2]
[334072077,1722726643601,-500.0,0.00013698,2]
[334072078,1722726643611,-500.0,0.00013698,2]
[334072079,1722726643623,-500.0,0.00013698,2]
[334072080,1722726643633,-151.0,0.00013698,2]
[334072081,1722726643643,-606.436354,0.00013698,2]
[334072082,1722726643654,-500.0,0.00013698,2]
[334072083,1722726643663,-500.0,0.00013698,2]
[334072084,1722726643673,-500.0,0.00013698,2]
[334072085,1722726643684,-500.0,0.00013698,2]
[334072086,1722726643693,-500.0,0.00013698,2]
[334072087,1722726643704,-500.0,0.00013698,2]
[334072088,1722726643714,-500.0,0.00013698,2]
[334072089,1722726643723,-528.97781954,0.00013698,2]
[334072090,1722726643734,-500.0,0.00013698,2]
[334072091,1722726643746,-500.0,0.00013698,2]
[334072092,1722726643755,-500.0,0.00013698,2]
[334072093,1722726643764,-505.15509623,0.00013698,2]
[334072094,1722726643773,-500.0,0.00013698,2]
[334072095,1722726643783,-500.0,0.00013698,2]
[334072096,1722726643793,-500.0,0.00013698,2]
[334072097,1722726643802,-500.0,0.00013698,2]
[334072098,1722726643813,-502.14,0.00013698,2]
[334072099,1722726643823,-500.0,0.00013698,2]
[334072100,1722726643833,-500.0,0.00013698,2]
[334072101,1722726643843,-500.0,0.00013698,2]
[334072102,1722726643852,-500.0,0.00013698,2]
[334072103,1722726643863,-500.0,0.00013698,2]
[334072104,1722726643873,-500.0,0.00013698,2]
[334072105,1722726643883,-500.0,0.00013698,2]
[334072106,1722726643892,-500.0,0.00013698,2]
[334072107,1722726643902,-500.0,0.00013698,2]
[334072108,1722726643912,-511.3,0.00013698,2]
[334072109,1722726643922,-500.0,0.00013698,2]
[334072110,1722726643931,-218.04690979,0.00013698,2]
[334072111,1722726643941,-507.34818783,0.00013698,2]
[334072112,1722726643951,-500.0,0.00013698,2]
[334072113,1722726643961,-500.0,0.00013698,2]
[334072114,1722726643970,-500.0,0.00013698,2]
[334072115,1722726643980,-500.0,0.00013698,2]
[334072116,1722726643992,-500.0,0.00013698,2]
[334072117,1722726644002,-326.03432267,0.00013698,2]
[334072118,1722726644012,-500.0,0.00013698,2]
[334072119,1722726644021,-500.0,0.00013698,2]
[334072120,1722726644030,-500.0,0.00013698,2]
[334072121,1722726644039,-519.42702461,0.00013698,2]
[334072122,1722726644050,-500.0,0.00013698,2]
[334072123,1722726644059,-500.0,0.00013698,2]
[334072124,1722726644069,-500.0,0.00013698,2]
[334072125,1722726644079,-500.0,0.00013698,2]
[334072126,1722726644088,-500.0,0.00013698,2]
[334072127,1722726644098,-504.10445539,0.00013698,2]
[334072128,1722726644107,-500.0,0.00013698,2]
[334072129,1722726644116,-500.0,0.00013698,2]
[334072130,1722726644126,-500.0,0.00013698,2]
[334072131,1722726644136,-251.02775073,0.00013698,2]
[334072132,1722726644145,-500.0,0.00013698,2]
[334072133,1722726644155,-500.0,0.00013698,2]
[334072134,1722726644164,-500.0,0.00013698,2]
[334072135,1722726644174,-151.0,0.00013698,2]
[334072136,1722726644184,-151.0,0.00013698,2]
[334072137,1722726644194,-151.0,0.00013698,2]
[334072138,1722726644203,-151.0,0.00013698,2]
[334072139,1722726644213,-151.0,0.00013698,2]
[334072140,1722726644223,-151.0,0.00013698,2]
[334072142,1722726644233,-151.0,0.00013698,2]
[334072144,1722726644245,-151.0,0.00013698,2]
[334072145,1722726644256,-500.0,0.00013698,2]
[334072146,1722726644265,-500.0,0.00013698,2]
[334072147,1722726644275,-500.0,0.00013698,2]
[334072148,1722726644284,-500.0,0.00013698,2]
[334072149,1722726644295,-500.0,0.00013698,2]
[334072150,1722726644305,-500.0,0.00013698,2]
[334072151,1722726644320,-500.0,0.00013698,2]
[334072152,1722726644330,-383.99679095,0.00013698,2]
[334072153,1722726644339,-500.0,0.00013698,2]
[334072154,1722726644349,-507.63589301,0.00013698,2]
[334072155,1722726644359,-500.0,0.00013698,2]
[334072156,1722726644368,-500.0,0.00013698,2]
[334072157,1722726644377,-195.018571,0.00013698,2]
[334072158,1722726644387,-195.018571,0.00013698,2]
[334072159,1722726644398,-195.018571,0.00013698,2]
[334072160,1722726644407,-162.12256688,0.00013698,2]
[334072161,1722726644417,-195.018571,0.00013698,2]
[334072162,1722726644426,-515.3322998,0.00013698,2]
[334072163,1722726644437,-500.0,0.00013698,2]
[334072164,1722726644447,-195.018571,0.00013698,2]
[334072165,1722726644457,-195.018571,0.00013698,2]
[334072166,1722726644467,-500.0,0.00013698,2]
[334072167,1722726644478,-500.0,0.00013698,2]
[334072168,1722726644492,-504.0877914,0.00013698,2]
[334072169,1722726644503,-500.0,0.00013698,2]
[334072170,1722726644512,-500.0,0.00013698,2]
[334072171,1722726644522,-500.0,0.00013698,2]
[334072172,1722726644532,-500.0,0.00013698,2]
[334072173,1722726644541,-500.0,0.00013698,2]
[334072174,1722726644552,-500.0,0.00013698,2]
[334072175,1722726644563,-500.0,0.00013698,2]
[334072176,1722726644573,-500.0,0.00013698,2]
[334072177,1722726644584,-151.0,0.00013698,2]
[334072178,1722726644593,-151.0,0.00013698,2]
[334072179,1722726644603,-151.0,0.00013698,2]
[334072180,1722726644613,-500.0,0.00013698,2]
[334072181,1722726644622,-500.0,0.00013698,2]
[334072182,1722726644632,-500.0,0.00013698,2]
[334072183,1722726644641,-331.83517555,0.00013698,2]
[334072184,1722726644651,-500.0,0.00013698,2]
[334072185,1722726644662,-694.72,0.00013698,2]
[334072186,1722726644672,-500.0,0.00013698,2]
[334072187,1722726644682,-740.24,0.00013698,2]
[334072189,1722726644692,-200.0,0.00013698,2]
[334072190,1722726644701,-500.54317155,0.00013698,2]
[334072192,1722726644711,-759.0,0.00013698,2]
[334072194,1722726644721,-500.0,0.00013698,2]
[334072196,1722726644731,-500.0,0.00013698,2]
[334072198,1722726644742,-500.0,0.00013698,2]
[334072199,1722726644752,-192.719259,0.00013698,2]
[334072201,1722726644761,-192.719259,0.00013698,2]
[334072202,1722726644771,-192.719259,0.00013698,2]
[334072204,1722726644781,-500.0,0.00013698,2]
[334072206,1722726644791,-192.719259,0.00013698,2]
[334072208,1722726644800,-192.719259,0.00013698,2]
[334072212,1722726644901,-500.0,0.00013698,2]
[334072213,1722726644913,-192.719259,0.00013698,2]
[334072214,1722726644923,-511.11563533,0.00013698,2]
[334072215,1722726644932,-500.0,0.00013698,2]
[334072216,1722726644942,-500.0,0.00013698,2]
[334072217,1722726644951,-500.0,0.00013698,2]
[334072218,1722726644961,-500.0,0.00013698,2]
[334072219,1722726644971,-500.0,0.00013698,2]
[334072220,1722726644980,-502.11341451,0.00013698,2]
[334072221,1722726644992,-500.0,0.00013698,2]
[334072222,1722726645001,-500.0,0.00013698,2]
[334072223,1722726645011,-500.0,0.00013698,2]
[334072224,1722726645021,-151.0,0.00013698,2]
[334072225,1722726645030,-596.49,0.00013698,2]
[334072226,1722726645040,-151.0,0.00013698,2]
[334072227,1722726645049,-151.0,0.00013698,2]
[334072228,1722726645059,-102.965342,0.00013698,2]
[334072229,1722726645212,-397.034658,0.00013698,2]
[334072230,1722726645222,-500.0,0.00013698,2]
[334072231,1722726645231,-500.0,0.00013698,2]
[334072232,1722726645241,-151.0,0.00013698,2]
[334072233,1722726645252,-151.0,0.00013698,2]
[334072234,1722726645262,-151.0,0.00013698,2]
[334072235,1722726645271,-500.0,0.00013698,2]
[334072236,1722726645281,-500.0,0.00013698,2]
[334072237,1722726645291,-500.0,0.00013698,2]
[334072238,1722726645301,-500.0,0.00013698,2]
[334072239,1722726645311,-2371.01,0.00013698,2]
[334072240,1722726645323,-500.0,0.00013698,2]
[334072241,1722726645332,-500.0,0.00013698,2]
[334072242,1722726645342,-403.15489105,0.00013698,2]
[334072277,1722726646432,-96.84510895,0.00013698,2]
[334072278,1722726646443,-500.0,0.00013698,2]
[334072280,1722726646452,-500.0,0.00013698,2]
[334072282,1722726646465,-500.0,0.00013698,2]
[334072283,1722726646475,-500.0,0.00013698,2]
[334072284,1722726646485,-500.0,0.00013698,2]
[334072285,1722726646497,-503.05056989,0.00013698,2]
[334072286,1722726646507,-500.0,0.00013698,2]
[334072287,1722726646517,-500.0,0.00013698,2]
[334072288,1722726646526,-500.0,0.00013698,2]
[334072289,1722726646536,-500.0,0.00013698,2]
[334072290,1722726646545,-500.0,0.00013698,2]
[334072291,1722726646558,-1032.22,0.00013698,2]
[334072292,1722726646567,-504.03913562,0.00013698,2]
[334072293,1722726646579,-500.0,0.00013698,2]
[334072294,1722726646589,-500.0,0.00013698,2]
[334072295,1722726646599,-500.0,0.00013698,2]
[334072296,1722726646608,-450.0,0.00013698,2]
[334072297,1722726646618,-151.0,0.00013698,2]
[334072298,1722726646628,-151.0,0.00013698,2]
[334072299,1722726646637,-500.0,0.00013698,2]
[334072300,1722726646647,-151.0,0.00013698,2]
[334072301,1722726646657,-500.0,0.00013698,2]
[334072302,1722726646666,-500.0,0.00013698,2]
[334072303,1722726646675,-500.0,0.00013698,2]
[334072304,1722726646685,-500.0,0.00013698,2]
[334072305,1722726646695,-500.0,0.00013698,2]
[334072306,1722726646705,-500.0,0.00013698,2]
[334072307,1722726646715,-500.0,0.00013698,2]
[334072308,1722726646726,-500.0,0.00013698,2]
[334072309,1722726646736,-500.0,0.00013698,2]
[334072310,1722726646752,-500.0,0.00013698,2]
[334072311,1722726646761,-500.0,0.00013698,2]
[334072312,1722726646770,-850.3480664,0.00013698,2]
[334072315,1722727626149,-300.97176093,9.999e-05,2]
[334072316,1722727626172,-111.28882648,9.999e-05,2]
[334072317,1722727650098,-411.73477087,9.999e-05,2]
[334072318,1722727650121,-164.562027,0.00012131,2]
[334072319,1722727650149,-63.36425095,0.00012201,2]
[334072321,1722727750075,-523.02359735,9.999e-05,2]
[334072322,1722727750098,-107.02975454,9.999e-05,2]
[334072375,1722727839325,-169.50496502,9.999e-05,2]
[334072376,1722727839336,-816.16582707,0.0001,2]
[334072377,1722727839346,-816.16582707,0.0001,2]
[334072378,1722727839356,-350.69394284,0.0001192,2]
[334072379,1722727839371,-1260.31385521,0.0001192,2]
[334072380,1722727839382,-2529.53309013,0.0001192,2]
[334072381,1722727839533,-3413.23827696,0.0001192,2]
[334072438,1722727841064,-17346.22083486,0.0001192,2]
[334072439,1722727841074,-523.02359735,0.0001212,2]
[334072440,1722727841084,-523.02359735,0.0001212,2]
[334072441,1722727841093,-101.19777605,0.00012201,2]
[334072442,1722727841102,-164.562027,0.00012272,2]
[334072443,1722727841111,-164.562027,0.00012342,2]
[334072444,1722727841123,-164.562027,0.00012412,2]
[334072445,1722727841136,-164.562027,0.00012482,2]
[334072446,1722727841145,-2023.51194993,0.000125,2]
[334072447,1722727841154,-164.562027,0.00012553,2]
[334072448,1722727841163,-164.562027,0.00012623,2]
[334072449,1722727841172,-164.562027,0.00012693,2]
[334072450,1722727841181,-164.562027,0.00012763,2]
[334072451,1722727841190,-3713.97065081,0.000129,2]
[334072452,1722727841200,-165.753834,0.00012986,2]
[334072453,1722727841209,-306.0,0.000133,2]
[334072454,1722727841219,-360.9595644,0.00013482,2]
[334072455,1722727841231,-366.4812016,0.00013501,2]
[334072456,1722727841242,-153.0,0.00013501,2]
[334072457,1722727841252,-206.960494,0.00013501,2]
[334072458,1722727841262,-153.0,0.00013501,2]
[334072459,1722727841272,-153.0,0.00013501,2]
[334072460,1722727841283,-153.0,0.00013501,2]
[334072461,1722727841293,-206.9604941,0.00013501,2]
[334072462,1722727841305,-206.960494,0.00013501,2]
[334072463,1722727841314,-153.0,0.00013501,2]
[334072464,1722727841326,-206.960494,0.00013501,2]
[334072465,1722727841337,-153.0,0.00013501,2]
[334072466,1722727841347,-206.960494,0.00013501,2]
[334072467,1722727841359,-153.0,0.00013501,2]
[334072468,1722727841369,-206.960494,0.00013501,2]
[334072469,1722727841378,-153.0,0.00013501,2]
[334072470,1722727841388,-206.960494,0.00013501,2]
[334072471,1722727841397,-294.2310959,0.00013501,2]
[334072472,1722727841406,-294.2310959,0.00013501,2]
[334072473,1722727841416,-153.0,0.00013501,2]
[334072474,1722727841425,-294.2310959,0.00013501,2]
[334072475,1722727841434,-294.2310959,0.00013501,2]
[334072476,1722727841444,-153.0,0.00013501,2]
[334072477,1722727841453,-294.2310959,0.00013501,2]
[334072478,1722727841463,-153.0,0.00013501,2]
[334072479,1722727841473,-294.2310959,0.00013501,2]
[334072480,1722727841482,-153.0,0.00013501,2]
[334072481,1722727841491,-153.0,0.00013501,2]
[334072482,1722727841501,-408.7363075,0.00013508,2]
[334072483,1722727841510,-6354.68917356,0.00013532,2]
[334072484,1722727841519,-404.74761041,0.00013586,2]
[334072485,1722727841528,-34627.28931267,0.000136,2]
[334072486,1722727841538,-404.7476104,0.00013633,2]
[334072487,1722727841547,-200.0,0.00013673,2]
[334072488,1722727841557,-15375.5322819,0.00013678,2]
[334072489,1722727841685,-404.7476104,0.00013679,2]
[334072490,1722727841696,-19019.16398216,0.00013686,2]
[334072491,1722727841712,-1429.55,0.00013687,2]
[334072492,1722727841722,-15375.5322819,0.00013688,2]
[334072493,1722727841733,-37682.27659019,0.00013688,2]
[334072501,1722727844373,-1821.39060644,0.00013688,2]
[334072526,1722727846837,-10541.53431602,0.00013688,2]
[334072529,1722728831113,-523.02359735,9.999e-05,2]
[334072530,1722728831138,-300.97176093,9.999e-05,2]
[334072531,1722728831159,-412.91003871,0.0001,2]
[334072532,1722728831180,-816.16582707,0.0001,2]
[334072533,1722728831207,-879.57,0.00010959,2]
[334072534,1722728831232,-157.521555,0.00011804,2]
[334072535,1722728831255,-157.521555,0.00011881,2]
[334072536,1722728831277,-300.0,0.00011904,2]
[334072537,1722728831300,-18394.42230528,0.00011905,2]
[334072538,1722728852096,-2559.45212266,0.00011905,2]
[334072549,1722729032651,-300.97176093,9.999e-05,2]
[334072550,1722729032661,-523.02359735,9.999e-05,2]
[334072551,1722729032671,-300.0,0.00011904,2]
[334072552,1722729032680,-3946.12557206,0.00011905,2]
[334072553,1722729032690,-309.73672378,0.00011905,2]
[334072554,1722729032700,-620.14234588,0.00011905,2]
[334072555,1722729032827,-2988.1876727,0.00011905,2]
[334072556,1722729032837,-157.521555,0.00011958,2]
[334072557,1722729032846,-157.521555,0.00012034,2]